[Event "RUS-chT Rapid Men 2018"]
[Site "Sochi"]
[Date "2018.10.09"]
[Round "7"]
[White "Uzhva, Andrey"]
[Black "Rudakov, Sergey S."]
[Result "1-0"]
[ECO "A05"]
[WhiteElo "2270"]
[BlackElo "1733"]
[Annotator "NA"]
[PlyCount "101"]
[EventDate "2018.10.05"]
[EventType "swiss"]
[EventCountry "RUS"]
[SourceTitle "playchess.com"]
[Source "ChessBase"]
[SourceQuality "1"]
[TimeControl "900+10"]

1. Nf3 {[%emt 0:00:00]} Nf6 {[%emt 0:00:00]} 2. g3 {[%emt 0:00:00]} g6 {[%emt 0:00:00]} 3. Bg2 {[%emt 0:00:00]} Bg7 {[%emt 0:00:00]} 4. O-O {[%emt 0:00:00]} O-O {[%emt 0:00:00]} 5. c4 {[%emt 0:00:00]} c6 {[%emt 0:00:02]} 6. Nc3 {[%emt 0:00:00]} d5 {[%emt 0:00:01]} 7. cxd5 {[%emt 0:03:44]} cxd5 {[%emt 0:00:07]} 8. d4 {[%emt 0:00:02]} Nc6 {[%emt 0:00:09]} 9. Ne5 {[%emt 0:00:33]} e6 {[%emt 0:01:43]} 10. Nxc6 {[%emt 0:00:45]} bxc6 {[%emt 0:00:08]} 11. Na4 {[%emt 0:01:13]} Nd7 {[%emt 0:00:56]} 12. Bf4 {[%emt 0:00:38]} Ba6 {[%emt 0:01:58]} 13. Rc1 {[%emt 0:01:53]} Rc8 {[%emt 0:01:17]} 14. Qd2 {[%emt 0:00:13]} Re8 {[%emt 0:02:08]} 15. Rc2 {[%emt 0:02:20]} Bb5 {[%emt 0:00:55]} 16. Nc3 {[%emt 0:00:15]} Qb6 {[%emt 0:00:41]} 17. Nxb5 {[%emt 0:00:17]} cxb5 {[%emt 0:00:47]} 18. e3 {[%emt 0:00:02]} Qa6 {[%emt 0:00:21]} 19. Rfc1 {[%emt 0:02:23]} Nb6 {[%emt 0:00:57]} 20. b3 {[%emt 0:00:10]} Bf8 {[%emt 0:00:06]} 21. Bf1 {[%emt 0:00:21]} Ba3 {[%emt 0:01:34]} 22. Rxc8 {[%emt 0:00:02]} Nxc8 {[%emt 0:00:16]} 23. Rc7 {[%emt 0:00:17]} Bd6 {[%emt 0:00:13]} 24. Bxd6 {[%emt 0:00:07]} Nxd6 {[%emt 0:00:29]} 25. Qc2 {[%emt 0:00:28]} Qa3 {[%emt 0:00:36]} 26. Qc5 {[%emt 0:00:49]} Qxc5 {[%emt 0:00:08]} 27. dxc5 {[%emt 0:00:00]} Ne4 {[%emt 0:00:03]} 28. Bxb5 {[%emt 0:00:06]} Rb8 {[%emt 0:00:03]} 29. Bd7 {[%emt 0:00:46]} Kf8 {[%emt 0:00:44]} 30. c6 {[%emt 0:00:13]} Rd8 {[%emt 0:01:04]} 31. Rxa7 {[%emt 0:00:17]} Nd6 {[%emt 0:00:06]} 32. c7 {[%emt 0:00:35]} Rxd7 {[%emt 0:00:01]} 33. c8=Q+ {[%emt 0:00:02]} Nxc8 {[%emt 0:00:01]} 34. Rxd7 {[%emt 0:00:01]} Ke8 {[%emt 0:00:05]} 35. Rb7 {[%emt 0:00:08]} Nd6 {[%emt 0:00:02]} 36. Ra7 {[%emt 0:00:14]} Nb5 {[%emt 0:00:04]} 37. Ra5 {[%emt 0:00:09]} Nd6 {[%emt 0:00:01]} 38. a4 {[%emt 0:00:03]} Kd7 {[%emt 0:00:02]} 39. Rc5 {[%emt 0:00:14]} Ne4 {[%emt 0:00:03]} 40. Rc2 {[%emt 0:00:06]} Nd6 {[%emt 0:00:04]} 41. a5 {[%emt 0:00:05]} Nb5 {[%emt 0:00:01]} 42. a6 {[%emt 0:00:07]} Na7 {[%emt 0:00:01]} 43. b4 {[%emt 0:00:04]} Kd6 {[%emt 0:00:02]} 44. f4 {[%emt 0:00:29]} f5 {[%emt 0:00:01]} 45. Kf2 {[%emt 0:00:01]} h6 {[%emt 0:00:01]} 46. Ke2 {[%emt 0:00:02]} g5 {[%emt 0:00:01]} 47. Kd2 {[%emt 0:00:18]} Nb5 {[%emt 0:00:03]} 48. Rc8 {[%emt 0:00:20]} gxf4 {[%emt 0:00:16]} 49. gxf4 {[%emt 0:00:02]} Kd7 {[%emt 0:00:02]} 50. Rb8 {[%emt 0:00:04]} Nc7 {[%emt 0:00:02]} 51. a7 {[%emt 0:00:04]} 1-0

[Event "RUS-chT Rapid Men 2018"]
[Site "Sochi"]
[Date "2018.10.09"]
[Round "7"]
[White "Kozak, Alexander"]
[Black "Nazaretyan, Tigran"]
[Result "1-0"]
[ECO "B22"]
[WhiteElo "2262"]
[BlackElo "2248"]
[Annotator "NA"]
[PlyCount "123"]
[EventDate "2018.10.05"]
[EventType "swiss"]
[EventCountry "RUS"]
[SourceTitle "playchess.com"]
[Source "ChessBase"]
[SourceQuality "1"]
[TimeControl "900+10"]

1. e4 {[%emt 0:00:00]} c5 {[%emt 0:00:00]} 2. c3 {[%emt 0:00:00]} Nf6 {[%emt 0:00:03]} 3. e5 {[%emt 0:00:00]} Nd5 {[%emt 0:00:03]} 4. d4 {[%emt 0:00:00]} cxd4 {[%emt 0:00:03]} 5. Nf3 {[%emt 0:00:00]} Nc6 {[%emt 0:00:05]} 6. Bc4 {[%emt 0:00:00]} Nb6 {[%emt 0:00:02]} 7. Bb3 {[%emt 0:00:00]} d5 {[%emt 0:00:03]} 8. exd6 {[%emt 0:00:00]} Qxd6 {[%emt 0:00:03]} 9. O-O {[%emt 0:00:00]} Be6 {[%emt 0:00:05]} 10. Na3 {[%emt 0:00:01]} Bxb3 {[%emt 0:00:28]} 11. axb3 {[%emt 0:00:01]} e6 {[%emt 0:02:15]} 12. Nb5 {[%emt 0:00:05]} Qd7 {[%emt 0:00:08]} 13. Nfxd4 {[%emt 0:00:02]} Nxd4 {[%emt 0:00:51]} 14. Nxd4 {[%emt 0:00:01]} Be7 {[%emt 0:03:00]} 15. Qe2 {[%emt 0:00:10]} O-O {[%emt 0:00:13]} 16. Rd1 {[%emt 0:00:02]} Rfd8 {[%emt 0:00:13]} 17. Bf4 {[%emt 0:00:35]} Nd5 {[%emt 0:01:06]} 18. Bg3 {[%emt 0:00:16]} Qc8 {[%emt 0:02:17]} 19. h3 {[%emt 0:01:42]} a6 {[%emt 0:00:40]} 20. Rd3 {[%emt 0:01:15]} Bd6 {[%emt 0:01:43]} 21. Bxd6 {[%emt 0:01:50]} Rxd6 {[%emt 0:00:03]} 22. Qe5 {[%emt 0:00:02]} Qd7 {[%emt 0:00:34]} 23. Rad1 {[%emt 0:00:37]} Rd8 {[%emt 0:00:26]} 24. Ne2 {[%emt 0:04:41]} f6 {[%emt 0:00:45]} 25. Qg3 {[%emt 0:00:01]} e5 {[%emt 0:01:09]} 26. c4 {[%emt 0:00:51]} Nc3 {[%emt 0:00:33]} 27. Rxd6 {[%emt 0:00:25]} Nxe2+ {[%emt 0:00:56]} 28. Kh2 {[%emt 0:00:01]} Qxd6 {[%emt 0:00:02]} 29. Rxd6 {[%emt 0:00:05]} Rxd6 {[%emt 0:00:01]} 30. Qf3 {[%emt 0:00:25]} Rd2 {[%emt 0:00:59]} 31. Qxb7 {[%emt 0:00:10]} Nd4 {[%emt 0:00:21]} 32. c5 {[%emt 0:00:34]} Rc2 {[%emt 0:00:12]} 33. Qxa6 {[%emt 0:00:05]} Rxf2 {[%emt 0:00:18]} 34. Qc8+ {[%emt 0:00:26]} Kf7 {[%emt 0:00:11]} 35. Qd7+ {[%emt 0:00:01]} Kg6 {[%emt 0:00:00]} 36. c6 {[%emt 0:00:03]} Rxb2 {[%emt 0:00:23]} 37. Qg4+ {[%emt 0:00:26]} Kf7 {[%emt 0:00:10]} 38. c7 {[%emt 0:00:02]} f5 {[%emt 0:00:01]} 39. Qxd4 {[%emt 0:00:15]} exd4 {[%emt 0:00:03]} 40. c8=Q {[%emt 0:00:01]} Kf6 {[%emt 0:00:23]} 41. b4 {[%emt 0:00:24]} Ke5 {[%emt 0:00:14]} 42. Qc5+ {[%emt 0:00:30]} Ke4 {[%emt 0:00:06]} 43. Qc4 {[%emt 0:00:05]} f4 {[%emt 0:00:14]} 44. Qe6+ {[%emt 0:00:18]} Kd3 {[%emt 0:00:06]} 45. Qf5+ {[%emt 0:00:03]} Kc3 {[%emt 0:00:11]} 46. Qxf4 {[%emt 0:00:05]} Rxb4 {[%emt 0:00:02]} 47. Qc1+ {[%emt 0:00:11]} Kd3 {[%emt 0:00:25]} 48. Qd1+ {[%emt 0:00:13]} Kc3 {[%emt 0:00:04]} 49. Qc1+ {[%emt 0:00:11]} Kd3 {[%emt 0:00:02]} 50. Kg3 {[%emt 0:00:02]} Rc4 {[%emt 0:00:22]} 51. Qd1+ {[%emt 0:00:08]} Kc3 {[%emt 0:00:03]} 52. Kf3 {[%emt 0:00:06]} Rc5 {[%emt 0:00:38]} 53. Ke4 {[%emt 0:00:11]} Rc4 {[%emt 0:00:06]} 54. Qd3+ {[%emt 0:00:10]} Kb4 {[%emt 0:00:01]} 55. Kd5 {[%emt 0:00:05]} Rc7 {[%emt 0:00:22]} 56. Qxd4+ {[%emt 0:00:07]} Kb5 {[%emt 0:00:01]} 57. Qb2+ {[%emt 0:00:09]} Ka6 {[%emt 0:00:01]} 58. Kd6 {[%emt 0:00:10]} Rb7 {[%emt 0:00:15]} 59. Qa1+ {[%emt 0:00:09]} Kb5 {[%emt 0:00:09]} 60. Qb1+ {[%emt 0:00:03]} Ka6 {[%emt 0:00:01]} 61. Qxh7 {[%emt 0:00:13]} g6 {[%emt 0:00:01]} 62. Qxb7+ {[%emt 0:00:04]} 1-0

[Event "RUS-chT Rapid Men 2018"]
[Site "Sochi"]
[Date "2018.10.09"]
[Round "7"]
[White "Popov, Maksim M."]
[Black "Ivlev, Aleksey"]
[Result "0-1"]
[ECO "C89"]
[WhiteElo "2219"]
[BlackElo "2326"]
[Annotator "NA"]
[PlyCount "76"]
[EventDate "2018.10.05"]
[EventType "swiss"]
[EventCountry "RUS"]
[SourceTitle "playchess.com"]
[Source "ChessBase"]
[SourceQuality "1"]
[TimeControl "900+10"]

1. e4 {[%emt 0:00:00]} e5 {[%emt 0:00:00]} 2. Nf3 {[%emt 0:00:00]} Nc6 {[%emt 0:00:00]} 3. Bb5 {[%emt 0:00:00]} a6 {[%emt 0:00:00]} 4. Ba4 {[%emt 0:00:00]} Nf6 {[%emt 0:00:00]} 5. O-O {[%emt 0:00:00]} Be7 {[%emt 0:00:00]} 6. Re1 {[%emt 0:00:00]} b5 {[%emt 0:00:00]} 7. Bb3 {[%emt 0:00:00]} O-O {[%emt 0:00:00]} 8. c3 {[%emt 0:00:04]} d5 {[%emt 0:00:00]} 9. exd5 {[%emt 0:00:23]} Nxd5 {[%emt 0:00:02]} 10. Nxe5 {[%emt 0:00:24]} Nxe5 {[%emt 0:00:02]} 11. Rxe5 {[%emt 0:00:01]} c6 {[%emt 0:00:00]} 12. d3 {[%emt 0:00:31]} Bd6 {[%emt 0:00:03]} 13. Re1 {[%emt 0:00:24]} Qh4 {[%emt 0:00:03]} 14. g3 {[%emt 0:00:06]} Qh3 {[%emt 0:00:01]} 15. Re4 {[%emt 0:00:30]} Qf5 {[%emt 0:00:13]} 16. Nd2 {[%emt 0:03:59]} Qg6 {[%emt 0:00:05]} 17. Nf3 {[%emt 0:01:05]} f5 {[%emt 0:01:33]} 18. Rd4 {[%emt 0:02:42]} Kh8 {[%emt 0:00:06]} 19. Bxd5 {[%emt 0:00:52]} cxd5 {[%emt 0:00:03]} 20. Nh4 {[%emt 0:01:16]} Qf7 {[%emt 0:00:38]} 21. Ng2 {[%emt 0:00:27]} Bb7 {[%emt 0:00:27]} 22. a4 {[%emt 0:00:23]} Be5 {[%emt 0:00:44]} 23. Rh4 {[%emt 0:01:13]} d4 {[%emt 0:00:10]} 24. Qh5 {[%emt 0:02:30]} Qxh5 {[%emt 0:00:02]} 25. Rxh5 {[%emt 0:00:01]} dxc3 {[%emt 0:00:03]} 26. bxc3 {[%emt 0:00:01]} Bxc3 {[%emt 0:00:04]} 27. Ra3 {[%emt 0:00:06]} b4 {[%emt 0:00:03]} 28. Ra2 {[%emt 0:00:15]} b3 {[%emt 0:00:07]} 29. Rb2 {[%emt 0:01:26]} Bxb2 {[%emt 0:00:15]} 30. Bxb2 {[%emt 0:00:00]} Bxg2 {[%emt 0:00:05]} 31. Kxg2 {[%emt 0:00:02]} Rac8 {[%emt 0:00:14]} 32. Rh4 {[%emt 0:00:29]} f4 {[%emt 0:00:07]} 33. Rg4 {[%emt 0:00:10]} Rf7 {[%emt 0:00:03]} 34. Rg5 {[%emt 0:00:01]} Rc2 {[%emt 0:00:23]} 35. Rd5 {[%emt 0:00:51]} h6 {[%emt 0:00:03]} 36. Be5 {[%emt 0:00:20]} fxg3 {[%emt 0:00:24]} 37. hxg3 {[%emt 0:00:03]} Rcxf2+ {[%emt 0:00:10]} 38. Kh3 {[%emt 0:00:01]} Rb7 {[%emt 0:00:10]} 0-1

[Event "RUS-chT Rapid Men 2018"]
[Site "Sochi"]
[Date "2018.10.09"]
[Round "7"]
[White "Shkurkin, Andrey"]
[Black "Tatarintsev, Egor"]
[Result "1-0"]
[ECO "A40"]
[WhiteElo "2201"]
[BlackElo "2086"]
[Annotator "NA"]
[PlyCount "83"]
[EventDate "2018.10.05"]
[EventType "swiss"]
[EventCountry "RUS"]
[SourceTitle "playchess.com"]
[Source "ChessBase"]
[SourceQuality "1"]
[TimeControl "900+10"]

1. d4 {[%emt 0:00:00]} e6 {[%emt 0:00:00]} 2. c4 {[%emt 0:00:00]} b6 {[%emt 0:00:00]} 3. e4 {[%emt 0:00:02]} Bb7 {[%emt 0:00:00]} 4. Bd3 {[%emt 0:00:07]} Nc6 {[%emt 0:00:00]} 5. Nf3 {[%emt 0:02:31]} Nb4 {[%emt 0:00:00]} 6. Nc3 {[%emt 0:00:24]} Nxd3+ {[%emt 0:00:04]} 7. Qxd3 {[%emt 0:00:02]} Ne7 {[%emt 0:00:07]} 8. Bg5 {[%emt 0:00:57]} f6 {[%emt 0:01:22]} 9. Be3 {[%emt 0:02:29]} d6 {[%emt 0:04:24]} 10. O-O {[%emt 0:01:49]} Qd7 {[%emt 0:00:18]} 11. b4 {[%emt 0:01:00]} g5 {[%emt 0:01:03]} 12. d5 {[%emt 0:02:22]} e5 {[%emt 0:01:02]} 13. c5 {[%emt 0:00:27]} c6 {[%emt 0:01:28]} 14. dxc6 {[%emt 0:02:21]} Bxc6 {[%emt 0:00:18]} 15. cxd6 {[%emt 0:02:01]} Rd8 {[%emt 0:01:27]} 16. Rfd1 {[%emt 0:00:10]} Nc8 {[%emt 0:00:27]} 17. b5 {[%emt 0:00:37]} Bb7 {[%emt 0:00:11]} 18. Rac1 {[%emt 0:00:26]} Bxd6 {[%emt 0:00:59]} 19. Qc4 {[%emt 0:00:11]} Qf7 {[%emt 0:00:05]} 20. Nd5 {[%emt 0:00:06]} Bxd5 {[%emt 0:01:44]} 21. Rxd5 {[%emt 0:00:11]} Ne7 {[%emt 0:00:02]} 22. Rdd1 {[%emt 0:00:16]} Qxc4 {[%emt 0:00:22]} 23. Rxc4 {[%emt 0:00:01]} Kf7 {[%emt 0:00:00]} 24. Kf1 {[%emt 0:00:12]} Ke6 {[%emt 0:00:14]} 25. Ke2 {[%emt 0:00:09]} Rc8 {[%emt 0:01:03]} 26. Rdc1 {[%emt 0:00:09]} Rxc4 {[%emt 0:00:29]} 27. Rxc4 {[%emt 0:00:01]} Rd8 {[%emt 0:00:06]} 28. Nd2 {[%emt 0:00:17]} h6 {[%emt 0:00:47]} 29. a4 {[%emt 0:00:08]} f5 {[%emt 0:00:53]} 30. f3 {[%emt 0:00:18]} f4 {[%emt 0:00:17]} 31. Bf2 {[%emt 0:00:02]} Ng6 {[%emt 0:00:24]} 32. a5 {[%emt 0:00:10]} bxa5 {[%emt 0:00:17]} 33. Bxa7 {[%emt 0:00:15]} Bb4 {[%emt 0:00:12]} 34. Nb3 {[%emt 0:00:17]} Ne7 {[%emt 0:00:01]} 35. b6 {[%emt 0:00:05]} Nc8 {[%emt 0:00:08]} 36. Rc6+ {[%emt 0:00:16]} Bd6 {[%emt 0:00:31]} 37. Nc5+ {[%emt 0:00:06]} Ke7 {[%emt 0:00:01]} 38. Nb7 {[%emt 0:00:12]} Rd7 {[%emt 0:00:10]} 39. Nxd6 {[%emt 0:00:05]} Nxd6 {[%emt 0:00:02]} 40. Bb8 {[%emt 0:00:13]} a4 {[%emt 0:00:07]} 41. Bxd6+ {[%emt 0:00:10]} Rxd6 {[%emt 0:00:02]} 42. b7 {[%emt 0:00:05]} 1-0

[Event "RUS-chT Rapid Men 2018"]
[Site "Sochi"]
[Date "2018.10.09"]
[Round "7"]
[White "Girshgorn, Leonid"]
[Black "Gogolev, Artem"]
[Result "1-0"]
[ECO "A45"]
[WhiteElo "1925"]
[BlackElo "2389"]
[Annotator "NA"]
[PlyCount "91"]
[EventDate "2018.10.05"]
[EventType "swiss"]
[EventCountry "RUS"]
[SourceTitle "playchess.com"]
[Source "ChessBase"]
[SourceQuality "1"]
[TimeControl "900+10"]

1. d4 {[%emt 0:00:00]} Nf6 {[%emt 0:00:00]} 2. Bf4 {[%emt 0:00:00]} g6 {[%emt 0:00:00]} 3. Nc3 {[%emt 0:00:00]} d5 {[%emt 0:00:00]} 4. e3 {[%emt 0:00:00]} Bg7 {[%emt 0:00:00]} 5. h4 {[%emt 0:00:02]} a6 {[%emt 0:00:13]} 6. Nf3 {[%emt 0:00:07]} Nbd7 {[%emt 0:00:20]} 7. Ne5 {[%emt 0:00:44]} c5 {[%emt 0:01:09]} 8. Be2 {[%emt 0:00:59]} h5 {[%emt 0:00:33]} 9. Nxd7 {[%emt 0:01:18]} Bxd7 {[%emt 0:00:08]} 10. dxc5 {[%emt 0:00:32]} Qa5 {[%emt 0:00:11]} 11. Qd4 {[%emt 0:01:14]} O-O {[%emt 0:04:48]} 12. Be5 {[%emt 0:00:54]} Rac8 {[%emt 0:00:38]} 13. b4 {[%emt 0:00:29]} Qa3 {[%emt 0:00:41]} 14. O-O {[%emt 0:01:13]} a5 {[%emt 0:03:59]} 15. Nxd5 {[%emt 0:01:07]} Rfe8 {[%emt 0:01:00]} 16. Bxf6 {[%emt 0:01:14]} exf6 {[%emt 0:00:07]} 17. Nb6 {[%emt 0:00:15]} Be6 {[%emt 0:00:17]} 18. Nxc8 {[%emt 0:00:04]} Rxc8 {[%emt 0:00:27]} 19. e4 {[%emt 0:03:25]} f5 {[%emt 0:00:20]} 20. e5 {[%emt 0:00:01]} Qxb4 {[%emt 0:00:02]} 21. Qxb4 {[%emt 0:00:29]} axb4 {[%emt 0:00:01]} 22. f4 {[%emt 0:00:01]} Bf8 {[%emt 0:00:02]} 23. Bf3 {[%emt 0:00:41]} Rxc5 {[%emt 0:00:19]} 24. a3 {[%emt 0:00:23]} bxa3 {[%emt 0:01:01]} 25. Rxa3 {[%emt 0:00:04]} Rxc2 {[%emt 0:00:13]} 26. Ra8 {[%emt 0:00:08]} b5 {[%emt 0:00:38]} 27. Rd1 {[%emt 0:00:30]} Rc8 {[%emt 0:01:11]} 28. Rxc8 {[%emt 0:00:14]} Bxc8 {[%emt 0:00:02]} 29. Rd8 {[%emt 0:00:06]} Be6 {[%emt 0:00:02]} 30. Bd5 {[%emt 0:00:49]} Bxd5 {[%emt 0:00:01]} 31. Rxd5 {[%emt 0:00:01]} b4 {[%emt 0:00:03]} 32. Rb5 {[%emt 0:00:20]} Be7 {[%emt 0:00:03]} 33. g3 {[%emt 0:00:00]} Kg7 {[%emt 0:00:04]} 34. Kg2 {[%emt 0:00:08]} Kf8 {[%emt 0:00:01]} 35. Rb8+ {[%emt 0:00:01]} Kg7 {[%emt 0:00:01]} 36. Kf3 {[%emt 0:00:01]} Bc5 {[%emt 0:00:03]} 37. Rb5 {[%emt 0:00:05]} Be7 {[%emt 0:00:04]} 38. Ke3 {[%emt 0:00:03]} Kf8 {[%emt 0:00:09]} 39. Rb8+ {[%emt 0:00:05]} Kg7 {[%emt 0:00:01]} 40. Kd4 {[%emt 0:00:01]} Bf8 {[%emt 0:00:08]} 41. Kd5 {[%emt 0:00:15]} Be7 {[%emt 0:00:03]} 42. Rb7 {[%emt 0:00:14]} Kf8 {[%emt 0:00:06]} 43. Kc6 {[%emt 0:00:24]} f6 {[%emt 0:00:51]} 44. e6 {[%emt 0:00:07]} g5 {[%emt 0:00:02]} 45. Kd7 {[%emt 0:00:16]} Bc5 {[%emt 0:00:06]} 46. Rb5 {[%emt 0:00:03]} 1-0

[Event "RUS-chT Rapid Men 2018"]
[Site "Sochi"]
[Date "2018.10.09"]
[Round "8"]
[White "Demidov, Mikhail"]
[Black "Timofeev, Artyom"]
[Result "0-1"]
[ECO "A04"]
[WhiteElo "2514"]
[BlackElo "2580"]
[Annotator "ChessBase"]
[PlyCount "88"]
[EventDate "2018.10.05"]
[EventType "swiss"]
[EventCountry "RUS"]
[SourceTitle "playchess.com"]
[Source "ChessBase"]
[SourceQuality "1"]
[TimeControl "900+10"]

1. Nf3 {[%emt 0:00:00]} c5 {[%emt 0:00:00]} 2. b3 {[%emt 0:00:18]} d6 {[%emt 0:00:05]} 3. Bb2 {[%emt 0:00:03]} e5 {[%emt 0:00:03]} 4. e4 {[%emt 0:00:31]} Nf6 {[%emt 0:00:10]} 5. Bb5+ {[%emt 0:00:05]} Nbd7 {[%emt 0:00:17]} 6. O-O {[%emt 0:01:16]} a6 {[%emt 0:00:48]} 7. Bd3 {[%emt 0:00:14]} Be7 {[%emt 0:00:00]} 8. c3 {[%emt 0:00:08]} O-O {[%emt 0:00:10]} 9. Bc2 {[%emt 0:00:01]} d5 {[%emt 0:02:01]} 10. exd5 {[%emt 0:01:18]} Nxd5 {[%emt 0:00:07]} 11. Re1 {[%emt 0:00:20]} Bf6 {[%emt 0:00:23]} 12. Na3 {[%emt 0:00:34]} Qc7 {[%emt 0:00:54]} 13. Qe2 {[%emt 0:03:27]} g6 {[%emt 0:02:20]} 14. Nc4 {[%emt 0:00:28]} b5 {[%emt 0:01:47]} 15. Ncxe5 {[%emt 0:00:54]} Nxe5 {[%emt 0:00:05]} 16. Nxe5 {[%emt 0:00:01]} Bb7 {[%emt 0:00:01]} 17. g3 {[%emt 0:04:47]} Rfe8 {[%emt 0:00:33]} 18. d4 {[%emt 0:00:04]} b4 {[%emt 0:00:02]} 19. c4 {[%emt 0:01:38]} Nc3 {[%emt 0:00:10]} 20. Bxc3 {[%emt 0:01:04]} bxc3 {[%emt 0:00:01]} 21. Be4 {[%emt 0:00:17]} cxd4 {[%emt 0:00:29]} 22. Bxb7 {[%emt 0:00:04]} Qxb7 {[%emt 0:00:13]} 23. f4 {[%emt 0:00:01]} Bxe5 {[%emt 0:04:25]} 24. fxe5 {[%emt 0:00:01]} Rad8 {[%emt 0:00:01]} 25. Qd3 {[%emt 0:00:01]} Qc7 {[%emt 0:00:17]} 26. e6 {[%emt 0:01:16]} fxe6 {[%emt 0:00:44]} 27. b4 {[%emt 0:00:05]} e5 {[%emt 0:00:02]} 28. c5 {[%emt 0:00:01]} Qc6 {[%emt 0:00:01]} 29. Re4 {[%emt 0:00:02]} Qb5 {[%emt 0:00:13]} 30. Qb1 {[%emt 0:00:08]} Qc4 {[%emt 0:00:10]} 31. Qc2 {[%emt 0:00:13]} Rf8 {[%emt 0:00:50]} 32. Rae1 {[%emt 0:00:34]} Rf3 {[%emt 0:00:21]} 33. Rxe5 {[%emt 0:00:04]} d3 {[%emt 0:00:12]} 34. Qd1 {[%emt 0:00:04]} Rdf8 {[%emt 0:00:48]} 35. Re8 {[%emt 0:00:20]} Qd4+ {[%emt 0:00:15]} 36. Kg2 {[%emt 0:00:01]} Rf2+ {[%emt 0:00:07]} 37. Kh3 {[%emt 0:00:05]} Qd7+ {[%emt 0:00:02]} 38. R8e6 {[%emt 0:00:02]} d2 {[%emt 0:00:15]} 39. c6 {[%emt 0:00:17]} dxe1=Q {[%emt 0:00:35]} 40. Qxd7 {[%emt 0:00:10]} Rxh2+ {[%emt 0:00:30]} 41. Kg4 {[%emt 0:00:18]} h5+ {[%emt 0:00:05]} 42. Kg5 {[%emt 0:00:01]} Qxg3+ {[%emt 0:00:02]} 43. Kh6 {[%emt 0:00:02]} Qf4+ {[%emt 0:00:01]} 44. Kxg6 {[%emt 0:00:01]} Rg2+ {[%emt 0:00:01]} 0-1

[Event "RUS-chT Rapid Men 2018"]
[Site "Sochi"]
[Date "2018.10.09"]
[Round "8"]
[White "Hasangatin, Ramil"]
[Black "Apryshko, Gleb"]
[Result "0-1"]
[ECO "B06"]
[WhiteElo "2485"]
[BlackElo "2399"]
[Annotator "ChessBase"]
[PlyCount "100"]
[EventDate "2018.10.05"]
[EventType "swiss"]
[EventCountry "RUS"]
[SourceTitle "playchess.com"]
[Source "ChessBase"]
[SourceQuality "1"]
[TimeControl "900+10"]

1. e4 {[%emt 0:00:00]} g6 {[%emt 0:00:00]} 2. d4 {[%emt 0:00:00]} Bg7 {[%emt 0:00:00]} 3. Nf3 {[%emt 0:00:00]} d6 {[%emt 0:00:00]} 4. c3 {[%emt 0:00:00]} e5 {[%emt 0:00:00]} 5. dxe5 {[%emt 0:00:43]} dxe5 {[%emt 0:00:00]} 6. Qxd8+ {[%emt 0:00:01]} Kxd8 {[%emt 0:00:00]} 7. Bc4 {[%emt 0:00:14]} f6 {[%emt 0:00:04]} 8. Be3 {[%emt 0:03:42]} Bh6 {[%emt 0:00:17]} 9. Ke2 {[%emt 0:00:10]} Bxe3 {[%emt 0:00:38]} 10. Kxe3 {[%emt 0:00:01]} Nh6 {[%emt 0:00:00]} 11. Nbd2 {[%emt 0:00:29]} a5 {[%emt 0:00:41]} 12. Ne1 {[%emt 0:01:36]} Ke7 {[%emt 0:00:27]} 13. Nd3 {[%emt 0:00:27]} Nd7 {[%emt 0:00:21]} 14. a3 {[%emt 0:00:33]} a4 {[%emt 0:00:35]} 15. Nb4 {[%emt 0:00:46]} c6 {[%emt 0:00:11]} 16. f3 {[%emt 0:00:23]} Nc5 {[%emt 0:00:19]} 17. Rad1 {[%emt 0:00:25]} Bd7 {[%emt 0:00:32]} 18. Nd3 {[%emt 0:00:20]} Ra5 {[%emt 0:00:08]} 19. Rhe1 {[%emt 0:01:00]} Rd8 {[%emt 0:00:04]} 20. Nf1 {[%emt 0:01:02]} Ne6 {[%emt 0:00:29]} 21. Kd2 {[%emt 0:01:36]} Nf4 {[%emt 0:00:34]} 22. Nxf4 {[%emt 0:00:22]} exf4 {[%emt 0:01:12]} 23. Kc2 {[%emt 0:01:13]} Rg5 {[%emt 0:00:08]} 24. Re2 {[%emt 0:00:42]} Be6 {[%emt 0:03:32]} 25. Bxe6 {[%emt 0:00:48]} Rxd1 {[%emt 0:00:01]} 26. Kxd1 {[%emt 0:00:01]} Kxe6 {[%emt 0:00:01]} 27. Nd2 {[%emt 0:00:51]} b5 {[%emt 0:00:01]} 28. c4 {[%emt 0:01:22]} Nf7 {[%emt 0:01:12]} 29. cxb5 {[%emt 0:00:01]} cxb5 30. Nb1 Nd6 {[%emt 0:00:49]} 31. Nc3 {[%emt 0:00:10]} Rc5 {[%emt 0:00:00]} 32. g3 {[%emt 0:00:45]} Nc4 {[%emt 0:01:16]} 33. Kc2 g5 34. Rf2 {[%emt 0:00:44]} Rc8 {[%emt 0:00:56]} 35. Kd3 {[%emt 0:00:11]} Rd8+ {[%emt 0:00:11]} 36. Kc2 {[%emt 0:00:09]} Ne3+ 37. Kc1 h5 {[%emt 0:00:42]} 38. gxf4 {[%emt 0:00:18]} gxf4 {[%emt 0:00:00]} 39. h4 {[%emt 0:00:01]} Rd7 {[%emt 0:01:47]} 40. Rd2 {[%emt 0:00:09]} Rc7 {[%emt 0:00:01]} 41. Rd8 {[%emt 0:00:16]} Rc5 {[%emt 0:00:19]} 42. Re8+ {[%emt 0:00:10]} Kf7 {[%emt 0:00:01]} 43. Rb8 {[%emt 0:00:14]} Ng2 {[%emt 0:00:03]} 44. Kd2 {[%emt 0:00:08]} Nxh4 {[%emt 0:00:02]} 45. Ke2 {[%emt 0:00:02]} Rg5 {[%emt 0:00:00]} 46. Rxb5 {[%emt 0:00:05]} Rg3 {[%emt 0:00:15]} 47. Rxh5 {[%emt 0:00:16]} Nxf3 {[%emt 0:00:01]} 48. Nd5 {[%emt 0:00:19]} Nd4+ {[%emt 0:00:04]} 49. Kf2 {[%emt 0:00:09]} Rb3 {[%emt 0:00:02]} 50. Nxf4 {[%emt 0:00:11]} Rf3+ {[%emt 0:00:01]} 0-1

[Event "RUS-chT Rapid Men 2018"]
[Site "Sochi"]
[Date "2018.10.09"]
[Round "8"]
[White "Savitskiy, Sergey"]
[Black "Pogromsky, Mikhail"]
[Result "1-0"]
[ECO "B28"]
[WhiteElo "2413"]
[BlackElo "2415"]
[Annotator "NA"]
[PlyCount "73"]
[EventDate "2018.10.05"]
[EventType "swiss"]
[EventCountry "RUS"]
[SourceTitle "playchess.com"]
[Source "ChessBase"]
[SourceQuality "1"]
[TimeControl "900+10"]

1. e4 {[%emt 0:00:00]} c5 {[%emt 0:00:05]} 2. Nf3 {[%emt 0:00:00]} a6 {[%emt 0:00:01]} 3. Nc3 {[%emt 0:00:00]} b6 {[%emt 0:00:45]} 4. d4 {[%emt 0:00:39]} cxd4 {[%emt 0:00:03]} 5. Nxd4 {[%emt 0:00:02]} Bb7 {[%emt 0:00:05]} 6. Qf3 {[%emt 0:00:10]} e6 {[%emt 0:00:25]} 7. Qg3 {[%emt 0:01:21]} d6 {[%emt 0:01:24]} 8. Bg5 {[%emt 0:01:45]} Nf6 {[%emt 0:01:06]} 9. O-O-O {[%emt 0:00:10]} Nbd7 {[%emt 0:00:43]} 10. f3 {[%emt 0:07:38]} Qc7 {[%emt 0:01:24]} 11. h4 {[%emt 0:00:44]} h5 {[%emt 0:01:36]} 12. Nb3 {[%emt 0:01:34]} b5 {[%emt 0:03:19]} 13. a3 {[%emt 0:00:09]} Ne5 {[%emt 0:01:20]} 14. Bf4 {[%emt 0:01:01]} O-O-O {[%emt 0:00:20]} 15. Qe1 {[%emt 0:01:02]} Be7 {[%emt 0:00:44]} 16. a4 {[%emt 0:00:45]} b4 {[%emt 0:00:57]} 17. Na2 {[%emt 0:00:01]} a5 {[%emt 0:00:04]} 18. Nd4 {[%emt 0:00:08]} d5 {[%emt 0:00:24]} 19. Kb1 {[%emt 0:00:26]} dxe4 {[%emt 0:00:34]} 20. Nc1 {[%emt 0:00:16]} Nd5 {[%emt 0:01:13]} 21. Bh2 {[%emt 0:00:15]} Bf6 {[%emt 0:00:10]} 22. fxe4 {[%emt 0:00:15]} Nc3+ {[%emt 0:01:06]} 23. bxc3 {[%emt 0:00:02]} bxc3 {[%emt 0:00:01]} 24. Ncb3 {[%emt 0:00:07]} Rd6 {[%emt 0:00:40]} 25. Nb5 {[%emt 0:00:12]} Rxd1+ {[%emt 0:00:02]} 26. Qxd1 {[%emt 0:00:00]} Qe7 {[%emt 0:00:02]} 27. Qe1 {[%emt 0:00:25]} Ng4 {[%emt 0:00:21]} 28. e5 {[%emt 0:00:07]} Bxh4 {[%emt 0:00:03]} 29. Qxc3+ {[%emt 0:00:02]} Kb8 {[%emt 0:00:01]} 30. Bg1 {[%emt 0:00:13]} Bf2 {[%emt 0:00:10]} 31. Qxa5 {[%emt 0:00:10]} Bxg1 {[%emt 0:00:07]} 32. Rxg1 {[%emt 0:00:01]} Nxe5 {[%emt 0:00:16]} 33. Qa7+ {[%emt 0:00:21]} Kc8 {[%emt 0:00:01]} 34. a5 {[%emt 0:00:15]} Nc6 {[%emt 0:00:32]} 35. Qb6 {[%emt 0:00:01]} Rd8 {[%emt 0:00:07]} 36. Be2 {[%emt 0:00:03]} Qb4 {[%emt 0:00:31]} 37. Qc7# {[%emt 0:00:07]} 1-0